fUSD/lending_fUSD_20240518
["ID","MTS","AMOUNT","RATE_DAILY","PERIOD"]
[327404087,1716043850474,-534.41,0.00029313,2]
[327404089,1716043850483,-3002.35,0.00029313,2]
[327404091,1716043850494,-2677.22,0.00029313,2]
[327404093,1716043850503,-500.0,0.00029313,2]
[327404095,1716043850513,-707.42,0.00029313,2]
[327404097,1716043850522,-500.0,0.00029313,2]
[327404099,1716043850532,-584.61,0.00029314,2]
[327404101,1716043850541,-500.0,0.00029314,2]
[327404103,1716043850550,-500.0,0.00029314,2]
[327404105,1716043850560,-500.0,0.00029314,2]
[327404106,1716043850569,-547.8,0.00029314,2]
[327404108,1716043850579,-508.47,0.00029314,2]
[327404111,1716043850588,-500.0,0.00029314,2]
[327404113,1716043850597,-679.02,0.00029314,2]
[327404114,1716043850606,-646.11,0.00029314,2]
[327404116,1716043850615,-948.82,0.00029314,2]
[327404118,1716043850626,-2048.85,0.00029314,2]
[327404120,1716043850636,-728.94,0.00029314,2]
[327404122,1716043850645,-500.0,0.00029314,2]
[327404124,1716043850654,-500.0,0.00029314,2]
[327404126,1716043850664,-222.32840236,0.00029314,2]
[327404128,1716043850673,-500.0,0.00029314,2]
[327404130,1716043850683,-500.0,0.00029314,2]
[327404132,1716043850692,-510.05,0.00029314,2]
[327404135,1716043850701,-500.0,0.00029314,2]
[327404137,1716043850711,-500.0,0.00029314,2]
[327404138,1716043850720,-500.0,0.00029314,2]
[327404141,1716043850729,-805.79,0.00029314,2]
[327404143,1716043850739,-500.0,0.00029314,2]
[327404145,1716043850750,-500.0,0.00029314,2]
[327404147,1716043850759,-1678.78,0.00029314,2]
[327404149,1716043850768,-453.4406911,0.00029314,2]
[327404151,1716043850778,-627.29,0.00029314,2]
[327404153,1716043850787,-500.0,0.00029314,2]
[327404155,1716043850796,-1174.18,0.00029314,2]
[327404157,1716043850806,-4870.32,0.00029314,2]
[327404159,1716043850816,-575.52,0.00029314,2]
[327404161,1716043850825,-1151.34,0.00029314,2]
[327404163,1716043850835,-2340.96,0.00029314,2]
[327404165,1716043850845,-772.43,0.00029314,2]
[327404167,1716043850855,-500.0,0.00029314,2]
[327404169,1716043850865,-500.0,0.00029314,2]
[327404171,1716043850876,-898.6,0.00029314,2]
[327404173,1716043850886,-659.13,0.00029314,2]
[327404175,1716043850896,-500.0,0.00029314,2]
[327404178,1716043850905,-500.0,0.00029314,2]
[327404180,1716043850915,-500.0,0.00029314,2]
[327404182,1716043850924,-322.35996869,0.00029314,2]
[327404184,1716043850934,-659.07,0.00029314,2]
[327404186,1716043850944,-500.0,0.00029314,2]
[327404188,1716043850953,-500.0,0.00029314,2]
[327404190,1716043850963,-772.47,0.00029314,2]
[327404192,1716043850972,-500.0,0.00029314,2]
[327404194,1716043850981,-568.15,0.00029314,2]
[327404196,1716043850991,-500.0,0.00029314,2]
[327404198,1716043851000,-941.67,0.00029314,2]
[327404200,1716043851009,-500.0,0.00029314,2]
[327404202,1716043851018,-370.45201503,0.00029314,2]
[327404204,1716043851032,-129.54798497,0.00029314,2]
[327404206,1716043851041,-134.62062938,0.00029314,2]
[327404208,1716043851053,-306.33871259,0.00029314,2]
[327404210,1716043851064,-59.04065803,0.00029314,2]
[327404212,1716043851073,-476.48178367,0.00029314,2]
[327404214,1716043851085,-23.51821633,0.00029314,2]
[327404217,1716043851094,-734.54,0.00029314,2]
[327404219,1716043851104,-500.0,0.00029314,2]
[327404221,1716043851113,-500.0,0.00029314,2]
[327404222,1716043851124,-521.45,0.00029315,2]
[327404225,1716043851133,-518.21,0.00029315,2]
[327404227,1716043851143,-725.67,0.00029315,2]
[327404229,1716043851152,-500.0,0.00029315,2]
[327404231,1716043851161,-500.0,0.00029315,2]
[327404233,1716043851170,-500.0,0.00029315,2]
[327404235,1716043851179,-794.88,0.00029315,2]
[327404237,1716043851188,-500.0,0.00029315,2]
[327404239,1716043851197,-500.0,0.00029315,2]
[327404241,1716043851206,-500.0,0.00029315,2]
[327404243,1716043851215,-500.0,0.00029315,2]
[327404244,1716043851224,-582.8,0.00029315,2]
[327404246,1716043851233,-515.82,0.00029315,2]
[327404248,1716043851244,-500.0,0.00029315,2]
[327404251,1716043851254,-159.50715449,0.00029487,2]
[327404253,1716043851264,-561.91534197,0.00029587,2]
[327404255,1716043851273,-1163.37,0.00029587,2]
[327404257,1716043851284,-500.0,0.00029587,2]
[327404259,1716043851296,-575.84,0.00029587,2]
[327404261,1716043851305,-500.0,0.00029587,2]
[327404262,1716043851315,-500.0,0.00029587,2]
[327404263,1716043851324,-500.0,0.00029587,2]
[327404264,1716043851335,-500.0,0.00029587,2]
[327404265,1716043851344,-463.58670894,0.00029587,2]
[327404266,1716043851354,-500.0,0.00029587,2]
[327404267,1716043851366,-786.04,0.00029587,2]
[327404268,1716043851377,-500.0,0.00029587,2]
[327404269,1716043851386,-500.0,0.00029587,2]
[327404270,1716043851396,-500.0,0.00029587,2]
[327404271,1716043851406,-1056.08,0.00029587,2]
[327404272,1716043851416,-628.44,0.00029587,2]
[327404273,1716043851426,-553.98,0.00029587,2]
[327404274,1716043851435,-533.33,0.00029587,2]
[327404275,1716043851445,-500.0,0.00029587,2]
[327404277,1716043851454,-500.0,0.00029587,2]
[327404279,1716043851464,-636.84449274,0.00029587,2]
[327404281,1716043851473,-500.0,0.00029587,2]
[327404283,1716043851482,-500.0,0.00029587,2]
[327404285,1716043851492,-500.0,0.00029587,2]
[327404287,1716043851503,-500.0,0.00029587,2]
[327404290,1716043851513,-525.27,0.00029587,2]
[327404292,1716043851523,-500.0,0.00029587,2]
[327404293,1716043851532,-631.26,0.00029587,2]
[327404296,1716043851542,-1903.5,0.00029587,2]
[327404298,1716043851551,-1461.37,0.00029587,2]
[327404300,1716043851562,-500.0,0.00029587,2]
[327404302,1716043851572,-500.0,0.00029587,2]
[327404304,1716043851582,-534.41,0.00029587,2]
[327404305,1716043851591,-3002.35,0.00029587,2]
[327404307,1716043851601,-2677.22,0.00029587,2]
[327404310,1716043851612,-500.0,0.00029587,2]
[327404312,1716043851622,-707.42,0.00029587,2]
[327404314,1716043851632,-500.0,0.00029587,2]
[327404316,1716043851642,-584.61,0.00029588,2]
[327404318,1716043851651,-500.0,0.00029588,2]
[327404319,1716043851660,-500.0,0.00029588,2]
[327404321,1716043851670,-500.0,0.00029588,2]
[327404323,1716043851679,-547.8,0.00029588,2]
[327404325,1716043851688,-508.47,0.00029588,2]
[327404327,1716043851698,-500.0,0.00029588,2]
[327404329,1716043851707,-679.02,0.00029588,2]
[327404331,1716043851716,-646.11,0.00029588,2]
[327404333,1716043851726,-948.82,0.00029588,2]
[327404335,1716043851735,-788.21090484,0.00029588,2]
[327404337,1716043851748,-1260.63909516,0.00029588,2]
[327404339,1716043851758,-728.94,0.00029588,2]
[327404341,1716043851767,-500.0,0.00029588,2]
[327404343,1716043851777,-218.35450351,0.00029588,2]
[327404345,1716043851788,-281.64549649,0.00029588,2]
[327404346,1716043851797,-187.67960777,0.00029588,2]
[327404347,1716043851807,-30.67489574,0.00029588,2]
[327404348,1716043851819,-469.32510426,0.00029588,2]
[327404349,1716043851828,-510.05,0.00029588,2]
[327404350,1716043851838,-565.25315834,0.00029588,2]
[327404351,1716043851848,-500.0,0.00029588,2]
[327404352,1716043851857,-500.0,0.00029588,2]
[327404353,1716043851866,-805.79,0.00029588,2]
[327404354,1716043851877,-66.80440062,0.00029588,2]
[327404355,1716043851888,-433.19559938,0.00029588,2]
[327404356,1716043851898,-279.3488916,0.00029588,2]
[327404357,1716043851910,-220.6511084,0.00029588,2]
[327404358,1716043851920,-1678.78,0.00029588,2]
[327404359,1716043851929,-627.29,0.00029588,2]
[327404360,1716043851939,-500.0,0.00029588,2]
[327404361,1716043851949,-3.2788916,0.00029588,2]
[327404362,1716043851961,-1047.1115,0.00029588,2]
[327404363,1716043851972,-123.7896084,0.00029588,2]
[327404364,1716043851981,-1025.41351739,0.00029588,2]
[327404365,1716043851992,-1834.41000002,0.00029588,2]
[327404366,1716043852194,-356.58093202,0.00027668,2]
[327404367,1716043852204,-500.0,0.00027669,2]
[327404368,1716043852214,-2010.49648259,0.00029588,2]
[327404369,1716043852223,-575.52,0.00029588,2]
[327404370,1716043852233,-1151.34,0.00029588,2]
[327404371,1716043852243,-2340.96,0.00029588,2]
[327404372,1716043852252,-772.43,0.00029588,2]
[327404373,1716043852261,-500.0,0.00029588,2]
[327404374,1716043852270,-500.0,0.00029588,2]
[327404375,1716043852282,-898.6,0.00029588,2]
[327404376,1716043852294,-659.13,0.00029588,2]
[327404377,1716043852305,-500.0,0.00029588,2]
[327404378,1716043852315,-500.0,0.00029588,2]
[327404379,1716043852324,-500.0,0.00029588,2]
[327404380,1716043852334,-659.07,0.00029588,2]
[327404381,1716043852344,-500.0,0.00029588,2]
[327404382,1716043852354,-500.0,0.00029588,2]
[327404383,1716043852365,-772.47,0.00029588,2]
[327404384,1716043852377,-500.0,0.00029588,2]
[327404385,1716043852386,-568.15,0.00029588,2]
[327404386,1716043852396,-500.0,0.00029588,2]
[327404387,1716043852405,-941.67,0.00029588,2]
[327404388,1716043852415,-500.0,0.00029588,2]
[327404389,1716043852424,-500.0,0.00029588,2]
[327404390,1716043852433,-500.0,0.00029588,2]
[327404391,1716043852443,-500.0,0.00029588,2]
[327404392,1716043852452,-734.54,0.00029588,2]
[327404393,1716043852462,-500.0,0.00029588,2]
[327404394,1716043852472,-500.0,0.00029588,2]
[327404395,1716043852481,-521.45,0.00029589,2]
[327404396,1716043852491,-518.21,0.00029589,2]
[327404397,1716043852502,-725.67,0.00029589,2]
[327404398,1716043852512,-500.0,0.00029589,2]
[327404399,1716043852522,-500.0,0.00029589,2]
[327404400,1716043852531,-500.0,0.00029589,2]
[327404401,1716043852541,-752.52925779,0.00029589,2]
[327404402,1716043852657,-42.35074221,0.00029589,2]
[327404403,1716043852667,-500.0,0.00029589,2]
[327404404,1716043852677,-500.0,0.00029589,2]
[327404405,1716043852686,-500.0,0.00029589,2]
[327404406,1716043852696,-500.0,0.00029589,2]
[327404407,1716043852705,-515.82,0.00029589,2]
[327404408,1716043852715,-500.0,0.00029589,2]
[327404409,1716043852724,-341.69,0.00029671,2]
[327404410,1716043852734,-1163.37,0.00029861,2]
[327404411,1716043852743,-500.0,0.00029861,2]
[327404412,1716043852754,-575.84,0.00029861,2]
[327404413,1716043852764,-526.27970846,0.00029861,2]
[327404414,1716043852773,-500.0,0.00029861,2]
[327404415,1716043852784,-500.0,0.00029861,2]
[327404416,1716043852795,-500.0,0.00029861,2]
[327404417,1716043852804,-500.0,0.00029861,2]
[327404418,1716043852814,-786.04,0.00029861,2]
[327404419,1716043852823,-500.0,0.00029861,2]
[327404420,1716043852832,-500.0,0.00029861,2]
[327404421,1716043852843,-500.0,0.00029861,2]
[327404422,1716043852852,-1056.08,0.00029861,2]
[327404423,1716043852862,-628.44,0.00029861,2]
[327404424,1716043852871,-553.98,0.00029861,2]
[327404425,1716043852880,-533.33,0.00029861,2]
[327404426,1716043852890,-500.0,0.00029861,2]
[327404427,1716043852899,-500.0,0.00029861,2]
[327404428,1716043852908,-500.0,0.00029861,2]
[327404429,1716043852917,-500.0,0.00029861,2]
[327404430,1716043852927,-500.0,0.00029861,2]
[327404431,1716043852936,-500.0,0.00029861,2]
[327404432,1716043852946,-525.27,0.00029861,2]
[327404433,1716043852955,-500.0,0.00029861,2]
[327404434,1716043852964,-631.26,0.00029861,2]
[327404435,1716043852974,-1903.5,0.00029861,2]
[327404436,1716043853167,-1461.37,0.00029861,2]
[327404437,1716043853176,-500.0,0.00029861,2]
[327404438,1716043853186,-500.0,0.00029861,2]
[327404439,1716043853196,-534.41,0.00029861,2]
[327404440,1716043853206,-3002.35,0.00029861,2]
[327404441,1716043853216,-2677.22,0.00029861,2]
[327404442,1716043853226,-512.40487389,0.00029861,2]
[327404443,1716043853236,-707.42,0.00029861,2]
[327404444,1716043853245,-291.39643467,0.00029861,2]
[327404445,1716043853255,-584.61,0.00029862,2]
[327404446,1716043853264,-500.0,0.00029862,2]
[327404447,1716043853275,-500.0,0.00029862,2]
[327404448,1716043853290,-500.0,0.00029862,2]
[327404449,1716043853299,-547.8,0.00029862,2]
[327404450,1716043853309,-508.47,0.00029862,2]
[327404451,1716043853318,-500.0,0.00029862,2]
[327404452,1716043853328,-679.02,0.00029862,2]
[327404453,1716043853338,-646.11,0.00029862,2]
[327404454,1716043853347,-948.82,0.00029862,2]
[327404455,1716043853356,-2048.85,0.00029862,2]
[327404456,1716043853367,-728.94,0.00029862,2]
[327404457,1716043853378,-500.0,0.00029862,2]
[327404458,1716043853388,-500.0,0.00029862,2]
[327404459,1716043853397,-500.0,0.00029862,2]
[327404460,1716043853407,-510.05,0.00029862,2]
[327404461,1716043853416,-500.0,0.00029862,2]
[327404462,1716043853426,-500.0,0.00029862,2]
[327404463,1716043853436,-805.79,0.00029862,2]
[327404464,1716043853446,-500.0,0.00029862,2]
[327404465,1716043853456,-500.0,0.00029862,2]
[327404466,1716043853465,-500.0,0.00029862,2]
[327404467,1716043853476,-1174.18,0.00029862,2]
[327404468,1716043853485,-4870.32,0.00029862,2]
[327404469,1716043853495,-575.52,0.00029862,2]
[327404470,1716043853505,-1151.34,0.00029862,2]
[327404471,1716043853515,-2340.96,0.00029862,2]
[327404472,1716043853525,-500.0,0.00029862,2]
[327404473,1716043853534,-772.43,0.00029862,2]
[327404474,1716043853544,-500.0,0.00029862,2]
[327404475,1716043853554,-898.6,0.00029862,2]
[327404476,1716043853564,-659.13,0.00029862,2]
[327404477,1716043853574,-500.0,0.00029862,2]
[327404478,1716043853584,-404.75778452,0.00029862,2]
[327404479,1716043853593,-500.0,0.00029862,2]
[327404480,1716043853602,-659.07,0.00029862,2]
[327404481,1716043853611,-500.0,0.00029862,2]
[327404482,1716043853621,-500.0,0.00029862,2]
[327404483,1716043853630,-772.47,0.00029862,2]
[327404484,1716043853639,-500.0,0.00029862,2]
[327404485,1716043853649,-568.15,0.00029862,2]
[327404486,1716043853658,-500.0,0.00029862,2]
[327404487,1716043853667,-941.67,0.00029862,2]
[327404488,1716043853676,-245.12045626,0.00029862,2]
[327404489,1716043853689,-254.87954374,0.00029862,2]
[327404490,1716043853699,-500.0,0.00029862,2]
[327404491,1716043853708,-426.34045626,0.00029862,2]
[327404492,1716043853719,-73.65954374,0.00029862,2]
[327404493,1716043853729,-500.0,0.00029862,2]
[327404494,1716043853738,-244.37888597,0.00029862,2]
[327404495,1716043853760,-500.0,0.00027669,2]
[327404496,1716043853770,-490.16111403,0.00029862,2]
[327404497,1716043853780,-274.4115398,0.00029862,2]
[327404498,1716043853790,-365.809242,0.00029862,2]
[327404499,1716043853799,-41.12461568,0.00029863,2]
[327404500,1716043853810,-293.774,0.00029863,2]
[327404501,1716043853821,-186.55138432,0.00029863,2]
[327404502,1716043853830,-379.52863568,0.00029863,2]
[327404503,1716043853842,-138.68136432,0.00029863,2]
[327404504,1716043853851,-725.67,0.00029863,2]
[327404505,1716043853860,-500.0,0.00029863,2]
[327404506,1716043853870,-500.0,0.00029863,2]
[327404507,1716043853881,-500.0,0.00029863,2]
[327404508,1716043853891,-794.88,0.00029863,2]
[327404509,1716043853900,-339.22841007,0.00029863,2]
[327404510,1716043853910,-500.0,0.00029863,2]
[327404511,1716043853919,-446.777635,0.00029863,2]
[327404512,1716043853931,-53.222365,0.00029863,2]
[327404513,1716043853941,-500.0,0.00029863,2]
[327404514,1716043853950,-41.40661512,0.00029863,2]
[327404515,1716043853966,-474.41338488,0.00029863,2]
[327404516,1716043853975,-500.0,0.00029863,2]
[327404517,1716043853984,-796.49198564,0.0003,4]
[327404518,1716043853993,-2950.0,0.0003,7]
[327404519,1716043854003,-4782.89,0.0003,2]
[327404520,1716043854013,-886.54,0.00030047,2]
[327404521,1716043854022,-1468.20106656,0.00030135,4]
[327404522,1716043854032,-1163.37,0.00030135,2]
[327404523,1716043854042,-500.0,0.00030135,2]
[327404524,1716043854052,-575.84,0.00030135,2]
[327404525,1716043854061,-500.0,0.00030135,2]
[327404526,1716043854071,-500.0,0.00030135,2]
[327404527,1716043854080,-500.0,0.00030135,2]
[327404528,1716043854090,-500.0,0.00030135,2]
[327404529,1716043854099,-786.04,0.00030135,2]
[327404530,1716043854108,-500.0,0.00030135,2]
[327404531,1716043854118,-500.0,0.00030135,2]
[327404532,1716043854130,-500.0,0.00030135,2]
[327404533,1716043854139,-1056.08,0.00030135,2]
[327404534,1716043854149,-628.44,0.00030135,2]
[327404535,1716043854159,-553.98,0.00030135,2]
[327404536,1716043854168,-533.33,0.00030135,2]
[327404537,1716043854178,-500.0,0.00030135,2]
[327404538,1716043854188,-500.0,0.00030135,2]
[327404539,1716043854198,-500.0,0.00030135,2]
[327404540,1716043854207,-500.0,0.00030135,2]
[327404541,1716043854216,-500.0,0.00030135,2]
[327404542,1716043854226,-500.0,0.00030135,2]
[327404543,1716043854235,-525.27,0.00030135,2]
[327404544,1716043854244,-500.0,0.00030135,2]
[327404545,1716043854254,-631.26,0.00030135,2]
[327404546,1716043854263,-1903.5,0.00030135,2]
[327404547,1716043854273,-1461.37,0.00030135,2]
[327404548,1716043854284,-564.2,0.00030135,2]
[327404549,1716043854295,-500.0,0.00030135,2]
[327404550,1716043854304,-534.41,0.00030135,2]
[327404551,1716043854313,-3002.35,0.00030135,2]
[327404552,1716043854323,-2677.22,0.00030135,2]
[327404553,1716043854334,-707.42,0.00030135,2]
[327404554,1716043854343,-584.61,0.00030136,2]
[327404555,1716043854352,-500.0,0.00030136,2]
[327404556,1716043854364,-500.0,0.00030136,2]
[327404557,1716043854373,-500.0,0.00030136,2]
[327404558,1716043854382,-547.8,0.00030136,2]
[327404559,1716043854391,-521.45,0.00030136,2]
[327404560,1716043854401,-508.47,0.00030136,2]
[327404561,1716043854410,-518.21,0.00030136,2]
[327404562,1716043854420,-500.0,0.00030136,2]
[327404563,1716043854429,-679.02,0.00030136,2]
[327404564,1716043854438,-646.11,0.00030136,2]
[327404565,1716043854448,-725.67,0.00030136,2]
[327404566,1716043854458,-500.0,0.00030136,2]
[327404567,1716043854466,-500.0,0.00030136,2]
[327404568,1716043854476,-500.0,0.00030136,2]
[327404569,1716043854485,-948.82,0.00030136,2]
[327404570,1716043854495,-2048.85,0.00030136,2]
[327404571,1716043854504,-794.88,0.00030136,2]
[327404572,1716043854515,-500.0,0.00030136,2]
[327404573,1716043854524,-500.0,0.00030136,2]
[327404574,1716043854534,-500.0,0.00030136,2]
[327404575,1716043854544,-728.94,0.00030136,2]
[327404576,1716043854553,-500.0,0.00030136,2]
[327404577,1716043854563,-515.82,0.00030136,2]
[327404578,1716043854573,-500.0,0.00030136,2]
[327404579,1716043854582,-500.0,0.00030136,2]
[327404580,1716043854592,-569.56253706,0.00030136,2]
[327404581,1716043854602,-510.05,0.00030136,2]
[327404582,1716043854612,-500.0,0.00030136,2]
[327404583,1716043854622,-500.0,0.00030136,2]
[327404584,1716043854632,-805.79,0.00030136,2]
[327404585,1716043854642,-500.0,0.00030136,2]
[327404586,1716043854652,-500.0,0.00030136,2]
[327404587,1716043854662,-542.39375079,0.00030136,2]
[327404588,1716043854671,-1174.18,0.00030136,2]
[327404589,1716043854681,-4870.32,0.00030136,2]
[327404590,1716043854691,-575.52,0.00030136,2]
[327404591,1716043854701,-1151.34,0.00030136,2]
[327404592,1716043854711,-2340.96,0.00030136,2]
[327404593,1716043854721,-500.0,0.00030136,2]
[327404594,1716043854730,-772.43,0.00030136,2]
[327404595,1716043854740,-500.0,0.00030136,2]
[327404596,1716043854753,-898.6,0.00030136,2]
[327404597,1716043854767,-659.13,0.00030136,2]
[327404598,1716043854781,-500.0,0.00030136,2]
[327404599,1716043854796,-500.0,0.00030136,2]
[327404600,1716043854808,-659.07,0.00030136,2]
[327404601,1716043854819,-500.0,0.00030136,2]
[327404602,1716043854832,-500.0,0.00030136,2]
[327404603,1716043854845,-772.47,0.00030136,2]
[327404604,1716043854858,-500.0,0.00030136,2]
[327404605,1716043854872,-568.15,0.00030136,2]
[327404606,1716043854885,-237.27230136,0.00030136,2]
[327404607,1716043854899,-941.67,0.00030136,2]
[327404608,1716043854912,-500.0,0.00030136,2]
[327404609,1716043854927,-500.0,0.00030136,2]
[327404610,1716043854941,-500.0,0.00030136,2]
[327404611,1716043854954,-434.29920253,0.00030136,2]
[327404612,1716043854966,-734.54,0.00030136,2]
[327404613,1716043854978,-420.16,0.00030137,2]
[327404614,1716043854990,-306.48,0.00030137,2]
[327404615,1716043855003,-150.0,0.00030137,2]
[327404616,1716043855017,-150.0,0.00030137,2]
[327404617,1716043855029,-163.39,0.00030137,2]
[327404618,1716043855041,-150.0,0.00030137,2]
[327404619,1716043855051,-703.32,0.00030137,2]
[327404620,1716043855062,-1047.64,0.00030137,2]
[327404621,1716043855073,-150.0,0.00030137,2]
[327404622,1716043855085,-150.0,0.00030137,2]
[327404623,1716043855097,-839.6,0.00030137,2]
[327404624,1716043855110,-163.39,0.00030137,2]
[327404625,1716043855124,-1047.64,0.00030137,2]
[327404626,1716043855135,-163.39,0.00030137,2]
[327404627,1716043855148,-150.0,0.00030137,2]
[327404628,1716043855161,-163.39,0.00030137,2]
[327404629,1716043855174,-150.0,0.00030137,2]
[327404630,1716043855187,-150.0,0.00030137,2]
[327404631,1716043855198,-925.0,0.00030239,5]
[327404632,1716043855208,-11746.2104736,0.00030295,2]
[327404633,1716043855219,-1163.37,0.00030409,2]
[327404634,1716043855244,-500.0,0.00030409,2]
[327404635,1716043855258,-575.84,0.00030409,2]
[327404636,1716043855272,-500.0,0.00030409,2]
[327404637,1716043855291,-500.0,0.00030409,2]
[327404638,1716043855306,-500.0,0.00030409,2]
[327404639,1716043855318,-500.0,0.00030409,2]
[327404640,1716043855331,-786.04,0.00030409,2]
[327404641,1716043855343,-500.0,0.00030409,2]
[327404642,1716043855358,-500.0,0.00030409,2]
[327404643,1716043855374,-500.0,0.00030409,2]
[327404644,1716043855385,-1056.08,0.00030409,2]
[327404645,1716043855396,-628.44,0.00030409,2]
[327404646,1716043855407,-553.98,0.00030409,2]
[327404647,1716043855418,-533.33,0.00030409,2]
[327404648,1716043855431,-500.0,0.00030409,2]
[327404649,1716043855444,-500.0,0.00030409,2]
[327404650,1716043855456,-500.0,0.00030409,2]
[327404651,1716043855469,-500.0,0.00030409,2]
[327404652,1716043855484,-500.0,0.00030409,2]
[327404653,1716043855497,-500.0,0.00030409,2]
[327404654,1716043855510,-525.27,0.00030409,2]
[327404655,1716043855522,-500.0,0.00030409,2]
[327404656,1716043855534,-631.26,0.00030409,2]
[327404657,1716043855547,-1903.5,0.00030409,2]
[327404658,1716043855560,-1461.37,0.00030409,2]
[327404659,1716043855571,-500.0,0.00030409,2]
[327404660,1716043855584,-534.41,0.00030409,2]
[327404661,1716043855596,-3002.35,0.00030409,2]
[327404662,1716043855608,-2677.22,0.00030409,2]
[327404663,1716043855620,-707.42,0.00030409,2]
[327404664,1716043855632,-584.61,0.0003041,2]
[327404665,1716043855644,-500.0,0.0003041,2]
[327404666,1716043855655,-500.0,0.0003041,2]
[327404667,1716043855667,-500.0,0.0003041,2]
[327404668,1716043855679,-547.8,0.0003041,2]
[327404669,1716043855691,-521.45,0.0003041,2]
[327404670,1716043855704,-508.47,0.0003041,2]
[327404671,1716043855715,-518.21,0.0003041,2]
[327404672,1716043855727,-500.0,0.0003041,2]
[327404673,1716043855739,-679.02,0.0003041,2]
[327404674,1716043855750,-646.11,0.0003041,2]
[327404675,1716043855762,-725.67,0.0003041,2]
[327404676,1716043855773,-600.64683266,0.0003041,2]
[327404677,1716043855784,-339.44144832,0.0003041,2]
[327404678,1716043855796,-500.0,0.0003041,2]
[327404679,1716043855808,-948.82,0.0003041,2]
[327404680,1716043855821,-2048.85,0.0003041,2]
[327404681,1716043855832,-794.88,0.0003041,2]
[327404682,1716043855845,-500.0,0.0003041,2]
[327404683,1716043855857,-500.0,0.0003041,2]
[327404684,1716043855868,-728.94,0.0003041,2]
[327404685,1716043855882,-500.0,0.0003041,2]
[327404686,1716043855894,-500.0,0.0003041,2]
[327404687,1716043855905,-515.82,0.0003041,2]
[327404688,1716043855918,-500.0,0.0003041,2]
[327404689,1716043855930,-500.0,0.0003041,2]
[327404690,1716043855942,-510.05,0.0003041,2]
[327404691,1716043855954,-500.0,0.0003041,2]
[327404692,1716043855964,-500.0,0.0003041,2]
[327404693,1716043855975,-805.79,0.0003041,2]
[327404694,1716043855985,-500.0,0.0003041,2]
[327404695,1716043855995,-500.0,0.0003041,2]
[327404696,1716043856005,-1174.18,0.0003041,2]
[327404697,1716043856015,-4870.32,0.0003041,2]
[327404698,1716043856024,-575.52,0.0003041,2]
[327404699,1716043856034,-1151.34,0.0003041,2]
[327404700,1716043856044,-2340.96,0.0003041,2]
[327404701,1716043856054,-202.93119674,0.0003041,2]
[327404702,1716043856063,-772.43,0.0003041,2]
[327404703,1716043856073,-500.0,0.0003041,2]
[327404704,1716043856083,-898.6,0.0003041,2]
[327404705,1716043856093,-659.13,0.0003041,2]
[327404706,1716043856102,-500.0,0.0003041,2]
[327404707,1716043856112,-500.0,0.0003041,2]
[327404708,1716043856122,-659.07,0.0003041,2]
[327404709,1716043856132,-500.0,0.0003041,2]